Cogmind - Beta 13 @@@ ROGUE MODE // 2024.04.07 @ 10:16:11 Player: dohmmass Result: Destroyed by S-27 Virus with Autogun Performance ------------- Evolutions (3) 1500 Regions Visited (5) 1000 Robots Destroyed (58) 290 Value Destroyed (1995) 1995 Prototype IDs (0) 0 Alien Tech Used (0) 0 Bonus (6) 6 TOTAL SCORE: 4791 Bonus ------- High Alert Combat Kills 6 Cogmind --------- Core Integrity 0/700 Matter 261/300 Energy 35/100 System Corruption 7% Temperature Cool (0) Movement Core (300) Ox5 Location -7/Lower Caves Parts ------- > --- POWER (1) -------- (None) > --- PROPULSION (2) --- (None) > --- UTILITY (6) ------ Improved Signal Interpreter Microactuators Actuator Array Hacking Suite Hacking Suite Hacking Suite > --- WEAPON (4) ------- Maul Powered Hammer Power Maul Spear > --- INVENTORY (5) ---- Target Analyzer Target Analyzer Core Analyzer Peak State ------------ > --- POWER ------------ Nuclear Core > --- PROPULSION ------- Backup Propulsion I Antigrav System > --- UTILITY ---------- Improved Signal Interpreter Microactuators Microactuators Hacking Suite Hacking Suite Hacking Suite > --- WEAPON ----------- Maul Powered Hammer Power Maul Spear > --- INVENTORY -------- Target Analyzer Target Analyzer Core Analyzer Actuator Array [Rating: 45] Favorites ----------- Power Improved Ion Engine Engine Improved Ion Engine Power Core Nuclear Core Propulsion Armored Treads Treads Armored Treads Wheel Compact Wheel Hover Unit Antigrav System Flight Unit Xenon Bombardment Thruster Utility Hacking Suite Device Microactuators Processor Improved Signal Interpreter Hackware Hacking Suite Protection Improved Light Armor Plating Weapon Scythe Energy Gun Spread Laser Energy Cannon EM Pulse Cannon Ballistic Gun Heavy Assault Rifle Ballistic Cannon Assault Cannon Impact Weapon Powered Hammer Slashing Weapon Scythe Piercing Weapon Spear Build | -11 -10 -9 -8 -7 -7 ------- Run | Yrd Mat Mat Mat Fac Low Slots Evolved 6 | . . 2 2 2 . Power . | . . . . . . Propulsion . | . . . . . . Utility 4 | . . . 2 2 . Weapon 2 | . . 2 . . . Parts Attached 48 | 5 4 2 22 14 1 Power 8 | 1 1 . 2 4 . Engine 5 | 1 . . 2 2 . Core 3 | . 1 . . 2 . Reactor . | . . . . . . Propulsion 12 | 2 2 . 6 2 . Treads 2 | . . . 2 . . Leg . | . . . . . . Wheel 6 | 2 2 . 2 . . Hover 2 | . . . . 2 . Flight 2 | . . . 2 . . Utility 14 | . . 2 7 4 1 Device 4 | . . 1 . 2 1 Storage . | . . . . . . Processor 1 | . . 1 . . . Hackware 3 | . . . 1 2 . Protection 6 | . . . 6 . . Artifact . | . . . . . . Weapon 14 | 2 1 . 7 4 . Energy Gun 3 | . 1 . 2 . . Energy Cannon 1 | . . . 1 . . Ballistic Gun 3 | 2 . . 1 . . Ballistic Cannon 2 | . . . 2 . . Launcher . | . . . . . . Special Weapon . | . . . . . . Impact Weapon 3 | . . . . 3 . Slashing Weapon 1 | . . . 1 . . Piercing Weapon 1 | . . . . 1 . Special Melee Weapon . | . . . . . . Unidentified Prototypes . | . . . . . . Parts Lost 31 | . 8 1 8 11 3 Power 6 | . 2 . . 3 1 Propulsion 9 | . 3 . 3 2 1 Utility 6 | . . 1 2 2 1 Weapon 10 | . 3 . 3 4 . Highest Loss Streak 8 | . 8 1 3 3 3 To Critical Strikes 1 | . . . . 1 . Average Slot Usage (%) 78 | . 59 8 86 78 84 Engine 5 | . 8 . 7 3 . Core 1 | . 2 . . 2 4 Treads 5 | . . . . 10 . Wheel 4 | . 23 . 7 . . Flight 2 | . . . 6 . . Device 4 | . . 1 . 8 15 Processor 7 | . . 6 9 7 7 Hackware 12 | . . . 4 21 23 Protection 11 | . . . 20 6 . Energy Gun 1 | . 2 . 2 . . Ballistic Gun 4 | . 19 . 5 1 . Ballistic Cannon 8 | . . . 15 4 . Slashing Weapon 4 | . . . 5 5 . Naked Turns 53 | . 8 45 . . . Heaviest Build 33 | 6 6 2 33 29 22 Greatest Support 40 | 26 32 3 40 40 11 Greatest Overweight (x) 10 | . . . 10 4 7 Average Overweight (x) . | . . . 1 . 4 Largest Inventory Capacity 5 | 5 5 5 5 5 5 Average Capacity 5 | 5 5 5 5 5 5 Most Carried 5 | 5 3 5 5 5 4 Average Carried 4 | 1 1 3 4 4 3 Final Capacity 5 | 5 5 5 5 5 5 Final Carried 5 | . 1 5 5 4 3 Class Distribution -------------------- 33% | Hacker-Mutant 30% | Tank 20% | Mutant 11% | Hacker-Tank 3% | Hacker-Gladiator Dominant Class ---------------- Mutant | -10/Materials Mutant | -9/Materials Tank | -8/Materials Hacker-Mutant | -7/Factory Hacker-Gladiator | -7/Lower Caves Resources | -11 -10 -9 -8 -7 -7 ----------- Run | Yrd Mat Mat Mat Fac Low Matter Collected 1540 | 204 96 . 819 384 37 Remotely . | . . . . . . Salvage Created 1717 | . 201 . 591 888 37 Parts 104 | . 7 . 43 53 1 Haulers Intercepted 2 | . . . . 2 . Recyclers Shooed 2 | . . . 2 . . Parts Field Recycled . | . . . . . . Retrieved Matter . | . . . . . . Parts Self-Destructed 1 | . . . . . 1 Prevented . | . . . . . . Kills | -11 -10 -9 -8 -7 -7 ------- Run | Yrd Mat Mat Mat Fac Low Combat Hostiles Destroyed 50 | . 4 . 26 19 1 Melee 15 | . . . . 14 1 Guns 6 | . 4 . 2 . . Cannons 29 | . . . 24 5 . Classes Destroyed 10 | . 1 . 6 3 . Worker 3 | . . . 2 1 . Builder 1 | . . . 1 . . Hauler 2 | . . . . 2 . Mechanic 1 | . . . . 1 . Watcher 1 | . . . 1 . . Swarmer 15 | . . . 13 2 . Grunt 19 | . 4 . 7 7 1 Sentry 5 | . . . 4 1 . Hunter 6 | . . . 2 4 . Programmer 5 | . . . . 5 . Best Kill Streak 4 | . 3 . 4 3 1 Combat Bots Only 4 | . 3 . 4 3 1 Max Kills in Single Turn 2 | . 1 . 2 1 1 Gunslinging . | . . . . . . Exploded . | . . . . . . Melee 1 | . . . . 1 1 Uniques/NPCs Destroyed . | . . . . . . Combat | -11 -10 -9 -8 -7 -7 -------- Run | Yrd Mat Mat Mat Fac Low Hostile Shots Fired 528 | . 65 60 164 161 78 Missed 151 | . 13 22 41 49 26 Damage Taken 4660 | . 664 366 1428 1692 510 Core 1558 | . 206 334 301 469 248 Absorbed by Shields 21 | . . 21 . . . Core Remaining (%) 44 | 100 17 16 45 . . Volleys Fired 156 | . 29 . 106 21 . Largest 4 | . 2 . 4 3 . Hottest 237 | . 65 . 237 111 . Shots Fired 237 | . 35 . 165 37 . Gun 76 | . 35 . 33 8 . Cannon 161 | . . . 132 29 . Launcher . | . . . . . . Special . | . . . . . . Kinetic 206 | . 23 . 146 37 . Thermal 22 | . 12 . 10 . . Explosive . | . . . . . . Electromagnetic 9 | . . . 9 . . Robot Hit Streak 14 | . 8 . 14 8 . Robot Miss Streak 7 | . 1 . 7 6 . Penetration Max . | . . . . . . Secondary Targets . | . . . . . . Shots Hit Robots 207 | . 27 . 92 81 7 Core Hits 115 | . 11 2 61 39 2 Critical Kills . | . . . . . . Critical Parts Destroyed 1 | . . . . 1 . Critical Strikes 12 | . . . 1 11 . Blast 1 | . . . 1 . . Smash 1 | . . . . 1 . Sever 10 | . . . . 10 . Melee Attacks 82 | . . . 1 73 8 Impact 9 | . . . . 3 6 Slashing 71 | . . . 1 70 . Piercing 2 | . . . . . 2 Sneak Attacks 4 | . . . . 4 . Combat Hostiles . | . . . . . . Follow-up Attacks 3 | . . . . . 3 Damage Inflicted 4905 | . 309 34 2148 2174 240 Guns 721 | . 309 . 330 82 . Cannons 2174 | . . . 1770 404 . Explosions 48 | . . . 48 . . Melee 1928 | . . . . 1688 240 Ramming 34 | . . 34 . . . Kinetic 2460 | . 173 . 1801 486 . Thermal 319 | . 136 . 183 . . Explosive . | . . . . . . Electromagnetic 164 | . . . 164 . . Impact 259 | . . . . 77 182 Slashing 1611 | . . . . 1611 . Piercing 58 | . . . . . 58 Highest Corruption 7 | . . . 1 7 7 Average Corruption 4 | . . . 1 4 7 Corruption Purged . | . . . . . . Corruption Blocked . | . . . . . . Effects 30 | . . . 2 27 1 Message Errors 9 | . . . . 9 . Matter Fused 9 | . . . 1 8 . Heat Flow Errors 1 | . . . . 1 . Energy Discharges 5 | . . . . 5 . Parts Rejected 2 | . . . 1 1 . Data Loss (minor) 4 | . . . . 3 1 Overload Shots . | . . . . . . Overflow Damage 83 | . . . 3 80 . Projectiles 3 | . . . 3 . . Explosions . | . . . . . . Melee 80 | . . . . 80 . Knockbacks 20 | . . . 13 7 . Impact 1 | . . . . 1 . Kinetic 19 | . . . 13 6 . Secondary . | . . . . . . Self-Inflicted Damage 45 | . . 16 29 . . Shots 1 | . . . 1 . . Rammed 6 | . . 6 . . . Targets Rammed 6 | . . 6 . . . Kicked . | . . . . . . Crushed . | . . . . . . Highest Temperature 685 | . 413 . 685 171 2 Average Temperature 154 | . 155 . 167 77 2 Received Heat Transfer 1131 | . 378 39 333 249 132 Effects 30 | . . . 30 . . Shutdowns 4 | . . . 4 . . Energy Bleed 5 | . . . 5 . . Interference 8 | . . . 8 . . Matter Decay 3 | . . . 3 . . Damage (major) 9 | . . . 9 . . Damage (core) 1 | . . . 1 . . Siege Activations . | . . . . . . Robots Corrupted . | . . . . . . Combat Hostiles . | . . . . . . Parts Fried . | . . . . . . Impact Corruptions 3 | . . . . 3 . Robots Melted . | . . . . . . Combat Hostiles . | . . . . . . Parts Melted . | . . . . . . Heat Transferred 598 | . 333 . 265 . . Parts Sabotaged . | . . . . . . Parts Stolen . | . . . . . . Parts Stripped . | . . . . . . Power Chain Reactions 1 | . . . 1 . . Alert | -11 -10 -9 -8 -7 -7 ------- Run | Yrd Mat Mat Mat Fac Low Peak Influence 459 | . 55 154 459 337 . Initial 157 | . . 14 65 157 . Average 206 | . 21 49 280 182 . Maximum Alert Level 2 | . . . 2 1 . Low Security (%) 50 | 100 100 100 17 67 . Level 1 49 | . . . 81 32 . Level 2 . | . . . . . . Level 3 . | . . . . . . Level 4 . | . . . . . . Level 5 . | . . . . . . High Security . | . . . . . . Max Security . | . . . . . . Squads Dispatched 13 | . . 1 5 7 . Investigation 6 | . . . 2 4 . Extermination 2 | . . . . 2 . Reinforcement 5 | . . 1 3 1 . Assault . | . . . . . . Garrison . | . . . . . . Intercept . | . . . . . . Searches Triggered . | . . . . . . Construction Impeded . | . . . . . . Haulers Reinforced 1 | . . . . 1 . Active Scanning Responses . | . . . . . . Cargo Convoy Interrupts . | . . . . . . Stealth | -11 -10 -9 -8 -7 -7 --------- Run | Yrd Mat Mat Mat Fac Low Distress Signals 9 | . . 3 5 1 . Communications Jammed . | . . . . . . Distress Signals . | . . . . . . Times Spotted 103 | . 6 16 41 36 4 Peak Tracking Total 15 | . 4 15 6 5 3 Tactical Retreats 9 | . . 2 . 6 1 Traps | -11 -10 -9 -8 -7 -7 ------- Run | Yrd Mat Mat Mat Fac Low Traps Triggered 2 | . . . 1 1 . Indirectly . | . . . . . . Trap Hack Attempts . | . . . . . . Triggered . | . . . . . . Disarmed . | . . . . . . Reprogrammed . | . . . . . . Reused . | . . . . . . Traps Extracted . | . . . . . . Installed . | . . . . . . Triggered . | . . . . . . Machines | -11 -10 -9 -8 -7 -7 ---------- Run | Yrd Mat Mat Mat Fac Low Machines Disabled 2 | . . . 1 1 . Max in Single Turn 1 | . . . 1 1 . Machines Repaired . | . . . . . . Machines Dismantled . | . . . . . . Machines Sabotaged . | . . . . . . Overloaded Fab Kills . | . . . . . . Hacking | -11 -10 -9 -8 -7 -7 --------- Run | Yrd Mat Mat Mat Fac Low Machines Accessed 8 | . 1 . 2 5 . Terminals 5 | . 1 . 1 3 . Fabricators 2 | . . . . 2 . Repair Stations . | . . . . . . Recycling Units . | . . . . . . Scanalyzers 1 | . . . 1 . . Garrison Access . | . . . . . . Total Hacks 28 | . 3 . 10 15 . Successful 24 | . 1 . 9 14 . Failed 4 | . 2 . 1 1 . Catastrophic . | . . . . . . Database Lockouts . | . . . . . . Manual . | . . . . . . Terminals 17 | . 3 . 5 9 . Fabricators 6 | . . . . 6 . Repair Stations . | . . . . . . Recycling Units . | . . . . . . Scanalyzers 5 | . . . 5 . . Garrison Access . | . . . . . . Terminal Hacks 14 | . 1 . 4 9 . Record 7 | . . . 1 6 . Open DSF 1 | . . . . 1 . Alert Level 2 | . . . 1 1 . Locate Traps 1 | . 1 . . . . Dispatch Records 2 | . . . 1 1 . Zone Layout 1 | . . . 1 . . Fabricator Hacks 5 | . . . . 5 . Load Schematic 2 | . . . . 2 . Build 3 | . . . . 3 . Repair Station Hacks . | . . . . . . Recycling Unit Hacks . | . . . . . . Scanalyzer 5 | . . . 5 . . Insert Component 2 | . . . 2 . . Analyze 3 | . . . 3 . . Garrison Access Hacks . | . . . . . . Unauthorized Hacks . | . . . . . . Terminals . | . . . . . . Fabricators . | . . . . . . Repair Stations . | . . . . . . Recycling Units . | . . . . . . Scanalyzers . | . . . . . . Garrison Access . | . . . . . . Data Cores Recovered . | . . . . . . Used . | . . . . . . Hacking Detections 6 | . . . 2 4 . Full Trace Events 5 | . . . 1 4 . Feedback Events 1 | . . . 1 . . Corruption 1 | . . . 1 . . Feedback Blocked . | . . . . . . Robot Schematics Acquired . | . . . . . . Robots Built . | . . . . . . Authchips . | . . . . . . Time . | . . . . . . Total Robot Build Rating . | . . . . . . Part Schematics Acquired 2 | . . . 2 . . Parts Built 3 | . . . . 3 . Authchips . | . . . . . . Time 263 | . . . . 263 . Total Part Build Rating 17 | . . . . 17 . Parts Repaired . | . . . . . . Time . | . . . . . . Parts Recycled . | . . . . . . Recycled Matter . | . . . . . . Retrieved Matter . | . . . . . . Retrieved Components . | . . . . . . Parts Scanalyzed 2 | . . . 2 . . Part Schematics Acquired 2 | . . . 2 . . Parts Damaged 1 | . . . 1 . . Bothacking | -11 -10 -9 -8 -7 -7 ------------ Run | Yrd Mat Mat Mat Fac Low Used RIF Installer . | . . . . . . Robots Hacked . | . . . . . . Non-combat . | . . . . . . Combat . | . . . . . . Robot Hacks Applied . | . . . . . . Relay Couplers Released 4 | . . . . 4 . Programmers 4 | . . . . 4 . Fabnet Peak Effective % . | . . . . . . Robots Rewired . | . . . . . . Allies Hacked . | . . . . . . Hacks Repelled . | . . . . . . Allies | -11 -10 -9 -8 -7 -7 -------- Run | Yrd Mat Mat Mat Fac Low Total Allies . | . . . . . . Largest Group . | . . . . . . Highest-Rated Group . | . . . . . . Highest-Rated Ally . | . . . . . . Total Orders . | . . . . . . Ally Attacks . | . . . . . . Total Damage . | . . . . . . Kills . | . . . . . . Allies Corrupted . | . . . . . . Allies Melted . | . . . . . . Intel | -11 -10 -9 -8 -7 -7 ------- Run | Yrd Mat Mat Mat Fac Low Robot Analysis Total . | . . . . . . Derelict Logs Recovered . | . . . . . . Drone Launches . | . . . . . . Drone Recoveries . | . . . . . . Exploration | -11 -10 -9 -8 -7 -7 ------------- Run | Yrd Mat Mat Mat Fac Low Turns Passed 3278 | 34 194 111 1320 1588 31 Spaces Moved 1769 | 35 120 193 615 798 8 Core 268 | 18 17 193 30 5 5 Treads 533 | . . . 37 496 . Legs . | . . . . . . Wheels 445 | 17 103 . 325 . . Hover 300 | . . . . 297 3 Flight 223 | . . . 223 . . Fastest Speed 50 | 50 50 50 50 60 120 Average Speed 130 | 69 89 50 151 141 257 Slowest Speed 550 | 90 100 50 550 250 400 Overloaded Moves . | . . . . . . Propulsion Burnouts . | . . . . . . Robots Hopped . | . . . . . . Cave-ins Triggered . | . . . . . . Exploration Rate (%) 21 | 4 29 17 52 21 4 Regions Visited 5 Branch Regions 1 Pre-discovered Areas . | . . . . . . Known Exits Taken 3 | . . 1 1 1 . Unknown Exits Taken 2 | 1 1 . . . . Scrap Searched . | . . . . . . Spaces Dug 4 | . . . 2 2 . Terrain Destroyed 26 | . . . 24 2 . Melee 3 | . . . 1 2 . Projectile 21 | . . . 21 . . AOE 2 | . . . 2 . . Terrain Rammed . | . . . . . . Walls Destroyed . | . . . . . . Machines Disabled . | . . . . . . Actions | -11 -10 -9 -8 -7 -7 --------- Run | Yrd Mat Mat Mat Fac Low Total 2476 | 44 174 206 855 1183 14 Wait 348 | . 16 . 77 255 . Move 1764 | 34 119 192 614 797 8 Hop . | . . . . . . Pick Up 61 | 5 5 6 27 18 . Fast Attach . | . . . . . . Attach 46 | 5 3 2 21 14 1 Detach . | . . . . . . Swap 2 | . 1 . 1 . . Drop 15 | . 1 . 8 6 . Fire 156 | . 29 . 106 21 . Melee 78 | . . . 1 72 5 Ram 6 | . . 6 . . . Kick . | . . . . . . Crush . | . . . . . . Escape Stasis . | . . . . . . Rewire . | . . . . . . Trap . | . . . . . . Miscellaneous . | . . . . . . Route ------- -11/Scrapyard -10/Materials -9/Materials -8/Materials -7/Factory -7/Lower Caves History --------- Turn | Location | Event 11 | -11/Scrapyard | Discovered new exit (range 15) 35 | -11/Scrapyard | Entered Materials 164 | -10/Materials | Core integrity fell below 50% 178 | -10/Materials | Discovered new exit (range 16) 228 | -10/Materials | Core integrity fell below 20% 229 | -10/Materials | Entered another Materials area 229 | -9/Materials | Evolved 2 slots: Weapon x2 252 | -9/Materials | Lost 8 parts (2p3n3w) 303 | -9/Materials | Core integrity fell below 50% 317 | -9/Materials | Build established: Mutant 334 | -9/Materials | Discovered new exit (range 5) 336 | -9/Materials | Identified exit to Materials 339 | -9/Materials | Core integrity fell below 20% 340 | -9/Materials | Entered another Materials area 340 | -8/Materials | Evolved 2 slots: Utility x2 662 | -8/Materials | Lost 3 parts (1u2w) 1129 | -8/Materials | Build established: Tank 1472 | -8/Materials | Core integrity fell below 50% 1499 | -8/Materials | Discovered new exit (range 10) 1659 | -8/Materials | Identified exit to Factory 1660 | -8/Materials | Entered Factory 1660 | -7/Factory | Evolved 2 slots: Utility x2 1795 | -7/Factory | Fabricated Hacking Suite (x1) 1975 | -7/Factory | Build established: Hacker-Tank 1995 | -7/Factory | Fabricated Adv. Thermal Generator (x2) 2311 | -7/Factory | Lost 3 parts (1p1u1w) 2350 | -7/Factory | Build established: Hacker-Mutant 2942 | -7/Factory | Core integrity fell below 50% 3046 | -7/Factory | Discovered new exit (range 8) 3049 | -7/Factory | Identified exit to Lower Caves 3248 | -7/Factory | Entered Lower Caves 3250 | -7/Lower Caves | Attracted the attention of an 0b10 checkpoint 3272 | -7/Lower Caves | Core integrity fell below 20% 3279 | -7/Lower Caves | Destroyed by S-27 Virus with Autogun Last Messages --------------- corrupted. 03231_ System corrupted: Matter fused (-7). 03233_ Acquired Backup Propulsion I. 03235_ Dropped Backup Propulsion I. 03246_ =ZKXAZMZJLWCDDV3#4UE LOCATION=LOWER CAVES GOAL=ESCAPE 03250_ Y-54 Guardian: "INTERCEPTING UNREGISTERED DERELICT." 03252_ Antigrav System destroyed. 03262_ G-47 Trooper destroyed. 03264_ Acquired 37 matter. 03264_ Nuclear Core destroyed. 03270_ Aluminum Leg fries itself beyond repair. 03274_ Microactuators destroyed. 03275_ Powered Hammer follow-up attack on Y-54 Guardian. 03275_ Spear follow-up attack on Y-54 Guardian. 03278_ System corrupted: Component data lost. 03278_ Spear follow-up attack on Y-54 Guardian. Map ----- +----------------------------------------------------+ | ?????????????????????????????????????????????? | | ?????????????????????????????????????????????? | | ?????????????????????????????????????????????? | | ?????????????????????????????????????????????? | | ?????????????????????????????????????????????? | | ?????????????????????????????????????????????? | | ?????????????????????????????????????????????? | | ?????????????????????????????????????????????? | | ?????????????????????????????????????????????? | | ?????????????????????????????????????????????? | | ?????????????????????????????????????????????? | | ?????????????????????????????????????????????? | | ??????????????? ??# ???????????????????????? | | ???????????????? ?# ???????????????????????? | | ????????????????? ## ###????????????????????? | | ?????????????????# ????????????????????? | | ??????????????##?# ????????????????????? | | ??????????????? # ????????????????????? | | ?????????????? # ????????????????????? | | ????????????# # # ????????????????????? | | ????????????#? ##??????????????????? | | ????????????# # ##?????????????????? | | ???????????# ##????????????????? | | ??????????? #????????????????? | | ???????????????# ##### Y #????????????????? | | ???????????????????????##@ #????????????????? | | ????????????????????????##s##????????????????? | | ??????????????# ## ### #?????????????????? | | ????????????# #?????????????????? | | ????????????????# #?????????????????? | | ?????????????# ####?????????????????? | | ??????????? ### #?????????????????????? | | ??????????? ??????#####??????????????????????? | | ?????????????????????????????????????????????? | | ?????????????????????????????????????????????? | | ?????????????????????????????????????????????? | | ?????????????????????????????????????????????? | | ?????????????????????????????????????????????? | | ?????????????????????????????????????????????? | | ?????????????????????????????????????????????? | | ?????????????????????????????????????????????? | | ?????????????????????????????????????????????? | | ?????????????????????????????????????????????? | | ?????????????????????????????????????????????? | | ?????????????????????????????????????????????? | | ?????????????????????????????????????????????? | | ?????????????????????????????????????????????? | | ?????????????????????????????????????????????? | | ?????????????????????????????????????????????? | | ?????????????????????????????????????????????? | +----------------------------------------------------+ Best States ------------- Heat Dissipation 34 Energy Generation 14 Energy Capacity 265 Matter Stores 300 Matter Capacity 300 Sight Range 16 Terrain Scan Density 10 Armor Coverage 450 Melee Speed Boost 40 Evasion (%) 53 Recoil Reduction 2 Offensive Hacking 30 Item Schematics ----------------- Hacking Suite | -8/Materials | Scanalyzed Actuator Array | -8/Materials | Scanalyzed Robot Schematics ------------------ None Fabricated ------------ Hacking Suite | x1 | -7/Factory Adv. Thermal Generator | x2 | -7/Factory | Preloaded Alien Tech Used ----------------- None Achievements -------------- None Challenges ------------ None Game ------ Seed IntegrityAbsorptionMatrix Manual? 0 Play Time 00:32:03 Cumulative 24.2 hours Start 2024.04.07 @ 09:43:40 End 2024.04.07 @ 10:16:11 Sessions 1 Manual Loads 0 Difficulty Rogue Special Mode None Game No. 47 Rogue 47 Adventurer 0 Explorer 0 Win Type - Total 0 Types 0/0/0/0/0/0/0/0/0 Lore% 15 Gallery% 30 Achievement% 21 Wizard Run 0 Options --------- Layout 1 ASCII 0 Keyboard 0 Movement Mouse Keybinds 0 Fullscreen 1 Font 24/Smallcaps Map View 50x35 Zoom Use 0% Tactical HUD 1 Map Filters NONE Filters NONE Steam 1 RUN: 638c0c59-0889-43ff-8269-a2e4a110ef7e